Workbook

Sheet Dačice
A1: Dačice
B5: Jméno | C5: Oddíl | D5: Reg.č. | E5: Kategorie | F5: Celk. | G5: Plné | H5: Dor. | I5: Chyb
A8: Starší žákyně
A9: 1. | B9: Černíková Jana | C9: Jiskra Nová Bystřice | D9: 27694 | E9: da | F9: =IF(OR(ISBLANK($G9))," ",G9+H9) -> 291 | G9: 188 | H9: 103 | I9: 4
A10: 2. | B10: Šindelářová Klára | C10: Slovan Kamenice n.L. | D10: 26615 | E10: da | F10: 285 | G10: 186 | H10: 99 | I10: 3
A11: 3. | B11: Březinová Adéla | C11: Dačice | D11: 27208 | E11: da | F11: 283 | G11: 187 | H11: 96 | I11: 5
A12: 4. | B12: Čepáková Natálie | C12: Dačice | D12: 27906 | E12: da | F12: 256 | G12: 168 | H12: 88 | I12: 5
A13: 5. | B13: Hrůzová Rozálie | C13: Dačice | D13: 27210 | E13: da | F13: 256 | G13: 184 | H13: 72 | I13: 7
A14: 6. | B14: Málková Valerie | C14: KK Jihlava | D14: 27309 | E14: da | F14: 254 | G14: 164 | H14: 90 | I14: 6
A15: 7. | B15: Kozáková Karolína | C15: KK Jihlava | D15: 26812 | E15: da | F15: 251 | G15: 173 | H15: 78 | I15: 2
A16: 8. | B16: Škarková Gabriela | C16: Sokol Šanov | D16: 27515 | E16: da | F16: 250 | G16: 163 | H16: 87 | I16: 7
A17: 9. | B17: Bartoňová Kamila | C17: Sokol Chotoviny | D17: 26637 | E17: da | F17: 249 | G17: 187 | H17: 62 | I17: 6
A18: 10. | B18: Deylová Běla | C18: Slavoj Žirovnice | D18: 27570 | E18: da | F18: 240 | G18: 171 | H18: 69 | I18: 9
A19: 11. | B19: Čadová Vendula | C19: České Velenice | D19: 27213 | E19: da | F19: 233 | G19: 176 | H19: 57 | I19: 11
A20: 12. | B20: Kulková Nela | C20: TJ Nové Město n.M. | D20: 27457 | E20: da | F20: 229 | G20: 170 | H20: 59 | I20: 12
A21: 13. | B21: Kaluginová Veronika | C21: Dačice | D21: 27907 | E21: da | F21: 229 | G21: 177 | H21: 52 | I21: 14
A22: 14. | B22: Banýrová Vanessa | C22: Spartak Rokytnice | D22: 27138 | E22: da | F22: 228 | G22: 162 | H22: 66 | I22: 11
A23: 15. | B23: Deylová Veronika | C23: Slavoj Žirovnice | D23: 27569 | E23: da | F23: 176 | G23: 139 | H23: 37 | I23: 14
A24: 16. | B24: Válalová Lucie | C24: Slovan Kamenice n.L. | D24: 27151 | E24: da | F24: 161 | G24: 136 | H24: 25 | I24: 23
A25: Mladší žákyně
A26: 1. | B26: Lysáková Leontýna | C26: Sokol Šanov | D26: 27185 | E26: db | F26: 307 | G26: 199 | H26: 108 | I26: 3
A27: 2. | B27: Tokárová Nikola | C27: České Velenice | D27: 27587 | E27: db | F27: 265 | G27: 170 | H27: 95 | I27: 6
A28: 3. | B28: Kafková Soňa | C28: Sokol Šanov | D28: 28311 | E28: db | F28: 234 | G28: 145 | H28: 89 | I28: 4
A29: 4. | B29: Chládková Julie | C29: Jiskra Nová Bystřice | D29: 28152 | E29: db | F29: 234 | G29: 159 | H29: 75 | I29: 10
A30: 5. | B30: Vacková Marie | C30: Kuželky Borovany | D30: 28287 | E30: db | F30: 232 | G30: 138 | H30: 94 | I30: 5
A31: 6. | B31: Pánková Julie | C31: Jiskra Nová Bystřice | D31: 27882 | E31: db | F31: 232 | G31: 144 | H31: 88 | I31: 9
A32: 7. | B32: Šalandová Eliška | C32: Jiskra Nová Bystřice | D32: 28295 | E32: db | F32: 228 | G32: 147 | H32: 81 | I32: 7
A33: 8. | B33: Mikulenková Anežka | C33: Sokol Šanov | D33: 28310 | E33: db | F33: 225 | G33: 141 | H33: 84 | I33: 14
A34: 9. | B34: Nováčková Eva | C34: KK Jihlava | D34: 28053 | E34: db | F34: 217 | G34: 132 | H34: 85 | I34: 12
A35: 10. | B35: Jechová Lucie | C35: Kuželky Borovany | D35: 28288 | E35: db | F35: 214 | G35: 131 | H35: 83 | I35: 11
A36: 11. | B36: Soukupová Veronika | C36: KK Jihlava | D36: 28051 | E36: db | F36: 212 | G36: 139 | H36: 73 | I36: 12
A37: 12. | B37: Urbánková Amálie | C37: Dačice | D37: 27209 | E37: db | F37: 206 | G37: 132 | H37: 74 | I37: 12
A38: 13. | B38: Kotlíková Zuzana | C38: Kuželky Borovany | D38: 28289 | E38: db | F38: 202 | G38: 129 | H38: 73 | I38: 8
A39: 14. | B39: Hanousková Kristýna | C39: KK Jihlava | D39: 28056 | E39: db | F39: 177 | G39: 97 | H39: 80 | I39: 14
A40: Starší žáci
A41: 1. | B41: Zuzánek Michal | C41: Spartak Rokytnice | D41: 27147 | E41: ha | F41: 301 | G41: 191 | H41: 110 | I41: 4
A42: 2. | B42: Bednář František | C42: České Velenice | D42: 26921 | E42: ha | F42: 297 | G42: 189 | H42: 108 | I42: 3
A43: 3. | B43: Vrbka Jan | C43: TJ Třebíč | D43: 26507 | E43: ha | F43: 295 | G43: 189 | H43: 106 | I43: 0
A44: 4. | B44: Zbořil Vojtěch | C44: KK Jihlava | D44: 26821 | E44: ha | F44: 283 | G44: 189 | H44: 94 | I44: 6
A45: 5. | B45: Pešek Roman | C45: Spartak Trhové Sviny | D45: 26907 | E45: ha | F45: 274 | G45: 194 | H45: 80 | I45: 6
A46: 6. | B46: Schütz Petr | C46: TJ Třebíč | D46: 27022 | E46: ha | F46: 267 | G46: 196 | H46: 71 | I46: 7
A47: 7. | B47: Mašek Tomáš | C47: KK Jihlava | D47: 27304 | E47: ha | F47: 265 | G47: 171 | H47: 94 | I47: 3
A48: 8. | B48: Mika Nicolas | C48: Sokol Šanov | D48: 26532 | E48: ha | F48: 261 | G48: 190 | H48: 71 | I48: 9
A49: 9. | B49: Janák Matouš | C49: Dačice | D49: 28322 | E49: ha | F49: 256 | G49: 178 | H49: 78 | I49: 3
A50: 10. | B50: Machačka Karel | C50: Spartak Rokytnice | D50: 27140 | E50: ha | F50: 255 | G50: 183 | H50: 72 | I50: 3
A51: 11. | B51: Melichar Lukáš | C51: Spartak Pelhřimov | D51: 25916 | E51: ha | F51: 250 | G51: 161 | H51: 89 | I51: 3
A52: 12. | B52: Brand Richard | C52: České Velenice | D52: 26919 | E52: ha | F52: 248 | G52: 167 | H52: 81 | I52: 4
A53: 13. | B53: Tarkovych Pavlo | C53: KK Jihlava | D53: 27305 | E53: ha | F53: 248 | G53: 186 | H53: 62 | I53: 9
A54: 14. | B54: Štěpán Marek | C54: Slavoj Žirovnice | D54: 27568 | E54: ha | F54: 246 | G54: 171 | H54: 75 | I54: 9
A55: 15. | B55: Trnovský Daniel | C55: KK Jihlava | D55: 27301 | E55: ha | F55: 244 | G55: 162 | H55: 82 | I55: 5
A56: 16. | B56: Polkovnyk Roman | C56: KK Jihlava | D56: 27298 | E56: ha | F56: 243 | G56: 174 | H56: 69 | I56: 7
A57: 17. | B57: Rechtorik Matyáš | C57: Sokol Chotoviny | D57: 27244 | E57: ha | F57: 242 | G57: 171 | H57: 71 | I57: 6
A58: 18. | B58: Štauber Marek | C58: Kuželky Borovany | D58: 27619 | E58: ha | F58: 236 | G58: 178 | H58: 58 | I58: 9
A59: 19. | B59: Vacko Vojtěch | C59: Sokol Chotoviny | D59: 26639 | E59: ha | F59: 229 | G59: 167 | H59: 62 | I59: 7
A60: 20. | B60: Vojtěchovský Matyáš | C60: KK Jihlava | D60: 27308 | E60: ha | F60: 225 | G60: 172 | H60: 53 | I60: 11
A61: 21. | B61: Dohnal Šimon | C61: KK Jihlava | D61: 27302 | E61: ha | F61: 215 | G61: 153 | H61: 62 | I61: 11
A62: 22. | B62: Malovec Eduard | C62: KK Jihlava | D62: 28318 | E62: ha | F62: 210 | G62: 161 | H62: 49 | I62: 11
A63: 23. | B63: Podhajský David | C63: TJ Nové Město n.M. | D63: 27710 | E63: ha | F63: 209 | G63: 144 | H63: 65 | I63: 13
A64: 24. | B64: Čech Ondřej | C64: TJ Třebíč | D64: 28238 | E64: ha | F64: 206 | G64: 155 | H64: 51 | I64: 11
A65: 25. | B65: Sirotek Dominik | C65: Sokol Chotoviny | D65: 27243 | E65: ha | F65: 195 | G65: 138 | H65: 57 | I65: 15
A66: 26. | B66: Gondek Matěj | C66: Vltavan Loučovice | D66: 26651 | E66: ha | F66: 195 | G66: 150 | H66: 45 | I66: 15
A67: 27. | B67: Spálenka Pavel | C67: Sokol Chotoviny | D67: 28337 | E67: ha | F67: 177 | G67: 117 | H67: 60 | I67: 16
A68: Mladší žáci
A69: 1. | B69: Novák Tomáš | C69: Dačice | D69: 27225 | E69: hb | F69: 302 | G69: 193 | H69: 109 | I69: 4
A70: 2. | B70: Vondráček Samuel | C70: Slovan Kamenice n.L. | D70: 27150 | E70: hb | F70: 279 | G70: 176 | H70: 103 | I70: 7
A71: 3. | B71: Borovička Roman | C71: Sokol Šanov | D71: 27184 | E71: hb | F71: 279 | G71: 178 | H71: 101 | I71: 3
A72: 4. | B72: Žižka Matěj | C72: KK Jihlava | D72: 27310 | E72: hb | F72: 263 | G72: 156 | H72: 107 | I72: 6
A73: 5. | B73: Mika Šimon | C73: Sokol Šanov | D73: 27879 | E73: hb | F73: 263 | G73: 169 | H73: 94 | I73: 5
A74: 6. | B74: Havel Jiří | C74: Jiskra Nová Bystřice | D74: 27947 | E74: hb | F74: 251 | G74: 158 | H74: 93 | I74: 4
A75: 7. | B75: Havel Tomáš | C75: Slavoj Žirovnice | D75: 27567 | E75: hb | F75: 251 | G75: 168 | H75: 83 | I75: 7
A76: 8. | B76: Turek Matyáš | C76: Spartak Pelhřimov | D76: 26828 | E76: hb | F76: =IF(OR(ISBLANK($G76))," ",G76+H76) -> 246 | G76: 150 | H76: 96 | I76: 5
A77: 9. | B77: Černecký Matyáš | C77: KK Jihlava | D77: 28060 | E77: hb | F77: 237 | G77: 142 | H77: 95 | I77: 8
A78: 10. | B78: Kotrč Matěj | C78: Slovan Kamenice n.L. | D78: 28124 | E78: hb | F78: 237 | G78: 152 | H78: 85 | I78: 6
A79: 11. | B79: Bártek Jan | C79: Slavoj Žirovnice | D79: 28161 | E79: hb | F79: 236 | G79: 149 | H79: 87 | I79: 8
A80: 12. | B80: Zmeškal Miroslav | C80: Jiskra Nová Bystřice | D80: 28176 | E80: hb | F80: 233 | G80: 149 | H80: 84 | I80: 4
A81: 13. | B81: Ujčík Zbyněk | C81: TJ Třebíč | D81: 27759 | E81: hb | F81: 230 | G81: 152 | H81: 78 | I81: 3
A82: 14. | B82: Rozkošný Filip | C82: Spartak Pelhřimov | D82: 27672 | E82: hb | F82: 226 | G82: 150 | H82: 76 | I82: 7
A83: 15. | B83: Kurz Štěpán | C83: Slovan Kamenice n.L. | D83: 27761 | E83: hb | F83: 225 | G83: 142 | H83: 83 | I83: 6
A84: 16. | B84: Smutný Filip | C84: KK Jihlava | D84: 28052 | E84: hb | F84: 223 | G84: 152 | H84: 71 | I84: 9
A85: 17. | B85: Jůn Jiří | C85: Slavoj Žirovnice | D85: 28163 | E85: hb | F85: 221 | G85: 145 | H85: 76 | I85: 9
A86: 18. | B86: Vevera Petr | C86: KK Jihlava | D86: 28061 | E86: hb | F86: 217 | G86: 137 | H86: 80 | I86: 10
A87: 19. | B87: Novák Šimon | C87: KK Jihlava | D87: 27612 | E87: hb | F87: 215 | G87: 130 | H87: 85 | I87: 7
A88: 20. | B88: Nováček Ondřej | C88: TJ Třebíč | D88: 28300 | E88: hb | F88: 212 | G88: 140 | H88: 72 | I88: 10
A89: 21. | B89: Černý Jan | C89: Kuželky Borovany | D89: 28291 | E89: hb | F89: 204 | G89: 127 | H89: 77 | I89: 7
A90: 22. | B90: Červenka Jiří | C90: Slavoj Žirovnice | D90: 28162 | E90: hb | F90: 197 | G90: 128 | H90: 69 | I90: 14
A91: 23. | B91: Malý Denis | C91: BOPO Třebíč | D91: 28320 | E91: hb | F91: 179 | G91: 107 | H91: 72 | I91: 13
A92: 24. | B92: Komínek Patrik | C92: KK Jihlava | D92: 28055 | E92: hb | F92: 169 | G92: 116 | H92: 53 | I92: 18

Sheet Duchcov
A1: Duchcov
B5: Jméno | C5: Oddíl | D5: Reg.č. | E5: Kategorie | F5: Celk. | G5: Plné | H5: Dor. | I5: Chyb
A8: Starší žákyně
A9: 1. | B9: Hendrychová Agáta | C9: Slavoj Praha | D9: 26696 | E9: da | F9: =IF(OR(ISBLANK($G9))," ",G9+H9) -> 235 | G9: 167 | H9: 68 | I9: 8
A10: 2. | B10: Škurlová Ema | C10: Loko Ústí n.L. | D10: 27127 | E10: da | F10: 225 | G10: 164 | H10: 61 | I10: 9
A11: Mladší žákyně
A12: 1. | B12: Benešová Barbora | C12: Jiskra Kovářská | D12: 28243 | E12: db | F12: 237 | G12: 143 | H12: 94 | I12: 5
A13: 2. | B13: Valešová Ema | C13: Jiskra Kovářská | D13: 28246 | E13: db | F13: 231 | G13: 145 | H13: 86 | I13: 6
A14: 3. | B14: Houšková Laura | C14: SKK Podbořany | D14: 28315 | E14: db | F14: 229 | G14: 154 | H14: 75 | I14: 4
A15: 4. | B15: Kocinová Nikola | C15: SKK Podbořany | D15: 28316 | E15: db | F15: 226 | G15: 152 | H15: 74 | I15: 8
A16: 5. | B16: Rottová Klára | C16: SKK Podbořany | D16: 28317 | E16: db | F16: 224 | G16: 152 | H16: 72 | I16: 5
A17: Starší žáci
A18: 1. | B18: Šimsa Michal | C18: Teplice Letná | D18: 26471 | E18: ha | F18: 286 | G18: 182 | H18: 104 | I18: 2
A19: 2. | B19: Holan Čeněk | C19: Slavoj Praha | D19: 27578 | E19: ha | F19: 267 | G19: 186 | H19: 81 | I19: 2
A20: 3. | B20: Semecký Karel | C20: Slavoj Praha | D20: 26731 | E20: ha | F20: 258 | G20: 189 | H20: 69 | I20: 6
A21: 4. | B21: Boudník Tobiáš | C21: Sokol Duchcov | D21: 27528 | E21: ha | F21: 238 | G21: 177 | H21: 61 | I21: 12
A22: 5. | B22: Fišer Tomáš | C22: SK Verneřice | D22: 28126 | E22: ha | F22: 238 | G22: 167 | H22: 71 | I22: 10
A23: 6. | B23: Pacholík Vojtěch | C23: SKK Bohušovice | D23: 26993 | E23: ha | F23: 234 | G23: 184 | H23: 50 | I23: 10
A24: 7. | B24: Sládek František | C24: Slavoj Praha | D24: 28343 | E24: ha | F24: 228 | G24: 171 | H24: 57 | I24: 10
A25: 8. | B25: Chaloupecký Jakub | C25: SKK Podbořany | D25: 27322 | E25: ha | F25: 213 | G25: 155 | H25: 58 | I25: 13
A26: Mladší žáci
A27: 1. | B27: Košťál Pavel | C27: SKK Bohušovice | D27: 27063 | E27: hb | F27: 258 | G27: 161 | H27: 97 | I27: 3
A28: 2. | B28: Studnička Richard | C28: SKK Bohušovice | D28: 26959 | E28: hb | F28: 251 | G28: 168 | H28: 83 | I28: 5
A29: 3. | B29: Václavek Matouš | C29: Jiskra Kovářská | D29: 28245 | E29: hb | F29: 229 | G29: 145 | H29: 84 | I29: 11
A30: 4. | B30: Mydlář Vojtěch | C30: TJ Neratovice | D30: 27963 | E30: hb | F30: 228 | G30: 145 | H30: 83 | I30: 9

Sheet Jičín
A1: Jičín
B5: Jméno | C5: Oddíl | D5: Reg.č. | E5: Kategorie | F5: Celk. | G5: Plné | H5: Dor. | I5: Chyb
A8: Starší žákyně
A9: 1. | B9: Bartoníčková Adéla | C9: SK Solnice | D9: 26799 | E9: da | F9: =IF(OR(ISBLANK($G9))," ",G9+H9) -> 256 | G9: 171 | H9: 85 | I9: 6
A10: 2. | B10: Bártová Nikola | C10: SKK Náchod | D10: 23376 | E10: da | F10: 245 | G10: 161 | H10: 84 | I10: 5
A11: 3. | B11: Dytrychová Lada | C11: KK Kosmonosy | D11: 26724 | E11: da | F11: 244 | G11: 165 | H11: 79 | I11: 5
A12: 4. | B12: Dalecká Tereza | C12: Kuželky Přelouč | D12: 27181 | E12: da | F12: 241 | G12: 171 | H12: 70 | I12: 7
A13: 5. | B13: Hejnová Klára | C13: SKK Náchod | D13: 27121 | E13: da | F13: 232 | G13: 164 | H13: 68 | I13: 5
A14: 6. | B14: Schneiderová Nikola | C14: SKK Náchod | D14: 27198 | E14: da | F14: 217 | G14: 155 | H14: 62 | I14: 6
A15: 7. | B15: Miláčková Karolína | C15: Kuželky Přelouč | D15: 27154 | E15: da | F15: 183 | G15: 122 | H15: 61 | I15: 14
A16: Mladší žákyně
A17: 1. | B17: Vítová Amálka | C17: KK Kosmonosy | D17: 26928 | E17: db | F17: 301 | G17: 201 | H17: 100 | I17: 3
A18: 2. | B18: Šimkovičová Ema | C18: SKK Náchod | D18: 27190 | E18: db | F18: 264 | G18: 157 | H18: 107 | I18: 3
A19: 3. | B19: Ratimcová Barbora | C19: KK Kosmonosy | D19: 27987 | E19: db | F19: 261 | G19: 164 | H19: 97 | I19: 3
A20: 4. | B20: Čapková Rozálka | C20: SKK Náchod | D20: 27119 | E20: db | F20: 261 | G20: 174 | H20: 87 | I20: 3
A21: 5. | B21: Udatná Viktorie | C21: Spartak Rokytnice | D21: 27144 | E21: db | F21: 255 | G21: 168 | H21: 87 | I21: 7
A22: 6. | B22: Hubková Lucie | C22: SKK Náchod | D22: 27195 | E22: db | F22: 252 | G22: 166 | H22: 86 | I22: 5
A23: 7. | B23: Drašnarová Amálie | C23: SKK Náchod | D23: 28253 | E23: db | F23: 245 | G23: 157 | H23: 88 | I23: 6
A24: 8. | B24: Gálusová Tereza | C24: Start Rychnov n.K. | D24: 27902 | E24: db | F24: 245 | G24: 157 | H24: 88 | I24: 9
A25: 9. | B25: Petrgálová Marie | C25: SKK Jičín | D25: 27740 | E25: db | F25: 241 | G25: 156 | H25: 85 | I25: 6
A26: 10. | B26: Pánková Eliška | C26: SKK Vrchlabí | D26: 27488 | E26: db | F26: 233 | G26: 158 | H26: 75 | I26: 12
A27: 11. | B27: Voňková Eliška | C27: SKK Náchod | D27: 28252 | E27: db | F27: 231 | G27: 144 | H27: 87 | I27: 6
A28: 12. | B28: Drobná Ema | C28: SKK Jičín | D28: 28029 | E28: db | F28: 224 | G28: 133 | H28: 91 | I28: 5
A29: 13. | B29: Broučková Elena | C29: SK Solnice | D29: 28193 | E29: db | F29: 212 | G29: 134 | H29: 78 | I29: 8
A30: 14. | B30: Dostálová Nikola | C30: SKK Vrchlabí | D30: 28329 | E30: db | F30: 209 | G30: 135 | H30: 74 | I30: 14
A31: 15. | B31: Žemličková Viktorie Ella | C31: Loko Česká Třebová | D31: 28002 | E31: db | F31: 207 | G31: 122 | H31: 85 | I31: 10
A32: 16. | B32: Palounková Ester | C32: SKK Jičín | D32: 28325 | E32: db | F32: 207 | G32: 125 | H32: 82 | I32: 12
A33: 17. | B33: Jarolímová Anna | C33: Kuželky Přelouč | D33: 28195 | E33: db | F33: 202 | G33: 136 | H33: 66 | I33: 8
A34: 18. | B34: Dušková Denisa | C34: SKK Náchod | D34: 28367 | E34: db | F34: 190 | G34: 125 | H34: 65 | I34: 11
A35: 19. | B35: Makoviny Viola | C35: SKK Jičín | D35: 27975 | E35: db | F35: 189 | G35: 112 | H35: 77 | I35: 7
A36: 20. | B36: Kesnerová Amélie | C36: SKK Jičín | D36: 27742 | E36: db | F36: 188 | G36: 121 | H36: 67 | I36: 10
A37: 21. | B37: Žemličková Sofie Isabel | C37: Loko Česká Třebová | D37: 28001 | E37: db | F37: 186 | G37: 100 | H37: 86 | I37: 12
A38: 22. | B38: Schejbalová Agáta | C38: SK Solnice | D38: 27911 | E38: db | F38: 184 | G38: 112 | H38: 72 | I38: 9
A39: 23. | B39: Tobolková Hana | C39: SKK Jičín | D39: 27980 | E39: db | F39: 184 | G39: 118 | H39: 66 | I39: 10
A40: 24. | B40: Šafránková Anna | C40: SKK Náchod | D40: 28366 | E40: db | F40: 181 | G40: 111 | H40: 70 | I40: 13
A41: 25. | B41: Faitová Viktorie | C41: SKK Jičín | D41: 28324 | E41: db | F41: 180 | G41: 105 | H41: 75 | I41: 16
A42: 26. | B42: Wágnerová Beáta | C42: SKK Náchod | D42: 27606 | E42: db | F42: 175 | G42: 101 | H42: 74 | I42: 14
A43: 27. | B43: Mertlíková Kristýna | C43: SKK Jičín | D43: 28092 | E43: db | F43: 153 | G43: 88 | H43: 65 | I43: 23
A44: 28. | B44: Kalábová Nicol | C44: SKK Jičín | D44: 28384 | E44: db | F44: 151 | G44: 95 | H44: 56 | I44: 14
A45: 29. | B45: Medková Viktorie | C45: KK Kosmonosy | D45: 28358 | E45: db | F45: 112 | G45: 63 | H45: 49 | I45: 32
A46: Starší žáci
A47: 1. | B47: Zapletal Jan | C47: SKK Vrchlabí | D47: 26852 | E47: ha | F47: 277 | G47: 182 | H47: 95 | I47: 5
A48: 2. | B48: Hrbáček Jaroslav | C48: SKK Vrchlabí | D48: 27859 | E48: ha | F48: 263 | G48: 189 | H48: 74 | I48: 5
A49: 3. | B49: Dastych Ondřej | C49: Vysoké Mýto | D49: 27112 | E49: ha | F49: 260 | G49: 182 | H49: 78 | I49: 8
A50: 4. | B50: Kůta Václav | C50: SKK Jičín | D50: 27540 | E50: ha | F50: 259 | G50: 183 | H50: 76 | I50: 10
A51: 5. | B51: Hanzl Denis | C51: SKK Náchod | D51: 27966 | E51: ha | F51: 255 | G51: 168 | H51: 87 | I51: 5
A52: 6. | B52: Martinec Daniel | C52: SKK Náchod | D52: 27196 | E52: ha | F52: 253 | G52: 191 | H52: 62 | I52: 7
A53: 7. | B53: Košina Martin | C53: Start Rychnov n.K. | D53: 26749 | E53: ha | F53: 247 | G53: 159 | H53: 88 | I53: 2
A54: 8. | B54: Posnar Petr | C54: SKK Náchod | D54: 27122 | E54: ha | F54: 246 | G54: 178 | H54: 68 | I54: 4
A55: 9. | B55: Maršík Tomáš | C55: SKK Vrchlabí | D55: 27265 | E55: ha | F55: 244 | G55: 175 | H55: 69 | I55: 10
A56: 10. | B56: Dusbaba Přemysl | C56: SK Solnice | D56: 26945 | E56: ha | F56: 239 | G56: 159 | H56: 80 | I56: 6
A57: 11. | B57: Richter Kryštof | C57: Červený Kostelec | D57: 27506 | E57: ha | F57: 235 | G57: 181 | H57: 54 | I57: 9
A58: 12. | B58: Novák Janek | C58: Spartak Rokytnice | D58: 27142 | E58: ha | F58: 227 | G58: 163 | H58: 64 | I58: 5
A59: 13. | B59: Novotný Patrik | C59: SKK Jičín | D59: 27656 | E59: ha | F59: 224 | G59: 148 | H59: 76 | I59: 11
A60: 14. | B60: Kulda Lukáš | C60: Zálabák Smiřice | D60: 28298 | E60: ha | F60: 210 | G60: 150 | H60: 60 | I60: 6
A61: 15. | B61: Berecz Attila | C61: SKK Jičín | D61: 27743 | E61: ha | F61: 190 | G61: 136 | H61: 54 | I61: 12
A62: 16. | B62: Procházka Josef | C62: SKK Třebechovice | D62: 28206 | E62: ha | F62: 168 | G62: 127 | H62: 41 | I62: 17
A63: 17. | B63: Dolanský Šimon | C63: Zálabák Smiřice | D63: 28297 | E63: ha | F63: 145 | G63: 97 | H63: 48 | I63: 20
A64: Mladší žáci
A65: 1. | B65: Flaška Filip | C65: SKK Náchod | D65: 27203 | E65: hb | F65: =IF(OR(ISBLANK($G65))," ",G65+H65) -> 286 | G65: 190 | H65: 96 | I65: 3
A66: 2. | B66: Váňa Jakub | C66: SKK Jičín | D66: 27741 | E66: hb | F66: 282 | G66: 186 | H66: 96 | I66: 3
A67: 3. | B67: Rolf Jakub | C67: SKK Vrchlabí | D67: 27236 | E67: hb | F67: 275 | G67: 169 | H67: 106 | I67: 5
A68: 4. | B68: Smolař Adam | C68: SKK Jičín | D68: 27289 | E68: hb | F68: 273 | G68: 180 | H68: 93 | I68: 4
A69: 5. | B69: Vít Tomáš | C69: KK Kosmonosy | D69: 26925 | E69: hb | F69: 266 | G69: 168 | H69: 98 | I69: 8
A70: 6. | B70: Weiss Patrik | C70: Start Rychnov n.K. | D70: 27508 | E70: hb | F70: 266 | G70: 177 | H70: 89 | I70: 2
A71: 7. | B71: Koudelka Adam | C71: SKK Vrchlabí | D71: 27178 | E71: hb | F71: 264 | G71: 172 | H71: 92 | I71: 4
A72: 8. | B72: Liška Ondřej | C72: SKK Vrchlabí | D72: 28040 | E72: hb | F72: 264 | G72: 177 | H72: 87 | I72: 4
A73: 9. | B73: Sojka Jaromír | C73: Sparta Kutná Hora | D73: 27358 | E73: hb | F73: 264 | G73: 182 | H73: 82 | I73: 4
A74: 10. | B74: Drábek Sebastien | C74: Loko Česká Třebová | D74: 27999 | E74: hb | F74: 261 | G74: 184 | H74: 77 | I74: 6
A75: 11. | B75: Machačka Antonín | C75: Spartak Rokytnice | D75: 27139 | E75: hb | F75: 256 | G75: 175 | H75: 81 | I75: 3
A76: 12. | B76: Dušek Michal | C76: SKK Náchod | D76: 27193 | E76: hb | F76: 253 | G76: 155 | H76: 98 | I76: 7
A77: 13. | B77: Čančík Marek | C77: KK Kosmonosy | D77: 27986 | E77: hb | F77: 251 | G77: 169 | H77: 82 | I77: 6
A78: 14. | B78: Vízek Sebastian | C78: Spartak Rokytnice | D78: 27146 | E78: hb | F78: 247 | G78: 155 | H78: 92 | I78: 7
A79: 15. | B79: Kanalaš Jakub | C79: KK Kosmonosy | D79: 27990 | E79: hb | F79: 247 | G79: 158 | H79: 89 | I79: 5
A80: 16. | B80: Gregor Tomáš | C80: SKK Vrchlabí | D80: 27489 | E80: hb | F80: 246 | G80: 158 | H80: 88 | I80: 8
A81: 17. | B81: Fejfar Matěj | C81: SKK Jičín | D81: 28020 | E81: hb | F81: 245 | G81: 153 | H81: 92 | I81: 5
A82: 18. | B82: Srp Sebastian | C82: SK Solnice | D82: 27881 | E82: hb | F82: 243 | G82: 156 | H82: 87 | I82: 5
A83: 19. | B83: Novotný Štěpán | C83: SKK Jičín | D83: 27647 | E83: hb | F83: 242 | G83: 157 | H83: 85 | I83: 6
A84: 20. | B84: Fejfar Adam | C84: SKK Jičín | D84: 28019 | E84: hb | F84: 239 | G84: 161 | H84: 78 | I84: 7
A85: 21. | B85: Oplt Matyáš | C85: KK Kosmonosy | D85: 27631 | E85: hb | F85: 232 | G85: 143 | H85: 89 | I85: 4
A86: 22. | B86: Bureš Daniel | C86: Zálabák Smiřice | D86: 28296 | E86: hb | F86: 231 | G86: 139 | H86: 92 | I86: 6
A87: 23. | B87: Vlček Matěj | C87: Červený Kostelec | D87: 27422 | E87: hb | F87: 227 | G87: 151 | H87: 76 | I87: 11
A88: 24. | B88: Zwiefelhofer David | C88: Červený Kostelec | D88: 27421 | E88: hb | F88: 225 | G88: 140 | H88: 85 | I88: 9
A89: 25. | B89: Lener Jakub | C89: SKK Náchod | D89: 28371 | E89: hb | F89: 224 | G89: 130 | H89: 94 | I89: 11
A90: 26. | B90: Hloušek Matouš | C90: Spartak Rokytnice | D90: 27137 | E90: hb | F90: 224 | G90: 144 | H90: 80 | I90: 7
A91: 27. | B91: Kohout Michal | C91: SKK Vrchlabí | D91: 28395 | E91: hb | F91: 224 | G91: 153 | H91: 71 | I91: 7
A92: 28. | B92: Mlejnek Lukáš | C92: KK Kosmonosy | D92: 27635 | E92: hb | F92: 223 | G92: 150 | H92: 73 | I92: 9
A93: 29. | B93: Musil Patrik | C93: SKK Náchod | D93: 27608 | E93: hb | F93: 222 | G93: 139 | H93: 83 | I93: 10
A94: 30. | B94: Rutar Vojtěch | C94: SKK Náchod | D94: 28372 | E94: hb | F94: 221 | G94: 137 | H94: 84 | I94: 9
A95: 31. | B95: Flídr Štěpán | C95: Loko Česká Třebová | D95: 27998 | E95: hb | F95: 219 | G95: 142 | H95: 77 | I95: 7
A96: 32. | B96: Harazim Daniel | C96: SKK Náchod | D96: 28370 | E96: hb | F96: 219 | G96: 145 | H96: 74 | I96: 6
A97: 33. | B97: Koudelka Vít | C97: Sparta Kutná Hora | D97: 27593 | E97: hb | F97: =IF(OR(ISBLANK($G97))," ",G97+H97) -> 218 | G97: 142 | H97: 76 | I97: 7
A98: 34. | B98: Votroubek Max | C98: Zálabák Smiřice | D98: 28299 | E98: hb | F98: 216 | G98: 132 | H98: 84 | I98: 6
A99: 35. | B99: Oprysk Pavel | C99: SKK Náchod | D99: 27123 | E99: hb | F99: 214 | G99: 137 | H99: 77 | I99: 7
A100: 36. | B100: Koudelka Štěpán | C100: Sparta Kutná Hora | D100: 27591 | E100: hb | F100: 208 | G100: 127 | H100: 81 | I100: 10
A101: 37. | B101: Pátek Tobiáš | C101: SK Solnice | D101: 28242 | E101: hb | F101: 207 | G101: 129 | H101: 78 | I101: 10
A102: 38. | B102: Sýkora Ondřej | C102: Červený Kostelec | D102: 27764 | E102: hb | F102: 202 | G102: 120 | H102: 82 | I102: 10
A103: 39. | B103: Limberský Jan | C103: SKK Vrchlabí | D103: 28330 | E103: hb | F103: 199 | G103: 117 | H103: 82 | I103: 9
A104: 40. | B104: Šmídl Jiří | C104: Loko Česká Třebová | D104: 28387 | E104: hb | F104: 196 | G104: 130 | H104: 66 | I104: 9
A105: 41. | B105: Žákovský Jan | C105: KK Kosmonosy | D105: 27630 | E105: hb | F105: 194 | G105: 113 | H105: 81 | I105: 12
A106: 42. | B106: Miláček Adam | C106: Kuželky Přelouč | D106: 28196 | E106: hb | F106: 194 | G106: 113 | H106: 81 | I106: 15
A107: 43. | B107: Špelina David | C107: SKK Rokycany | D107: 27895 | E107: hb | F107: 194 | G107: 122 | H107: 72 | I107: 10
A108: 44. | B108: Hruška Jakub | C108: SKK Třebechovice | D108: 28207 | E108: hb | F108: 191 | G108: 111 | H108: 80 | I108: 14
A109: 45. | B109: Červený Tadeáš | C109: SKK Vrchlabí | D109: 28334 | E109: hb | F109: 191 | G109: 112 | H109: 79 | I109: 14
A110: 46. | B110: Záhrobský Adam | C110: Sparta Kutná Hora | D110: 27359 | E110: hb | F110: 191 | G110: 121 | H110: 70 | I110: 12
A111: 47. | B111: Matouš Marek | C111: SKK Jičín | D111: 28326 | E111: hb | F111: 188 | G111: 110 | H111: 78 | I111: 15
A112: 48. | B112: Tovara Adam | C112: Sparta Kutná Hora | D112: 27592 | E112: hb | F112: 185 | G112: 105 | H112: 80 | I112: 17
A113: 49. | B113: Dostál Kryštof | C113: SKK Vrchlabí | D113: 28328 | E113: hb | F113: 182 | G113: 113 | H113: 69 | I113: 16
A114: 50. | B114: Adamů Jonáš | C114: Červený Kostelec | D114: 28159 | E114: hb | F114: 165 | G114: 91 | H114: 74 | I114: 16
A115: 51. | B115: Navrátil Štěpán | C115: SKK Jičín | D115: 28383 | E115: hb | F115: 153 | G115: 98 | H115: 55 | I115: 18
A116: 52. | B116: Gregor Ondřej | C116: SKK Vrchlabí | F116: 159 | G116: 93 | H116: 66 | I116: 16

Sheet Luhačovice
A1: Luhačovice
B5: Jméno | C5: Oddíl | D5: Reg.č. | E5: Kategorie | F5: Celk. | G5: Plné | H5: Dor. | I5: Chyb
A8: Starší žákyně
A9: 1. | B9: Krejčí Anna | C9: Spartak Přerov | D9: 26691 | E9: da | F9: =IF(OR(ISBLANK($G9))," ",G9+H9) -> 249 | G9: 174 | H9: 75 | I9: 7
A10: 2. | B10: Bastová Petra | C10: Unie Hlubina | D10: 27865 | E10: da | F10: 243 | G10: 168 | H10: 75 | I10: 7
A11: 3. | B11: Škodová Romana | C11: Lokomotiva Valtice | D11: 26803 | E11: da | F11: 232 | G11: 182 | H11: 50 | I11: 6
A12: 4. | B12: Dendisová Adéla | C12: Sokol Bohumín | D12: 27089 | E12: da | F12: 227 | G12: 151 | H12: 76 | I12: 8
A13: 5. | B13: Foltýnová Kamila | C13: VKK Vsetín | D13: 26765 | E13: da | F13: 227 | G13: 173 | H13: 54 | I13: 12
A14: 6. | B14: Neugebauerová Anna | C14: Spartak Přerov | D14: 26694 | E14: da | F14: 225 | G14: 160 | H14: 65 | I14: 10
A15: 7. | B15: Novotná Tamara | C15: Lokomotiva Valtice | D15: 26413 | E15: da | F15: 213 | G15: 173 | H15: 40 | I15: 6
A16: 8. | B16: Buchlovská Šarlota | C16: Unie Hlubina | D16: 27866 | E16: da | F16: 198 | G16: 146 | H16: 52 | I16: 13
A17: 9. | B17: Jüstelová Vendula | C17: TJ Opava | E17: da | F17: 192 | G17: 137 | H17: 55 | I17: 13
A18: Mladší žákyně
A19: 1. | B19: Jančicová Gabriela | C19: VKK Vsetín | D19: 27899 | E19: db | F19: 268 | G19: 178 | H19: 90 | I19: 5
A20: 2. | B20: Harcová Alžběta | C20: Sokol Vracov | D20: 27487 | E20: db | F20: 244 | G20: 183 | H20: 61 | I20: 10
A21: 3. | B21: Jančicová Tamara | C21: VKK Vsetín | D21: 27898 | E21: db | F21: 217 | G21: 140 | H21: 77 | I21: 5
A22: 4. | B22: Dendisová Viktorie | C22: Sokol Bohumín | D22: 27509 | E22: db | F22: 200 | G22: 130 | H22: 70 | I22: 9
A23: 5. | B23: Surovčáková Nikola | C23: VKK Vsetín | D23: 27901 | E23: db | F23: 179 | G23: 117 | H23: 62 | I23: 13
A24: Starší žáci
A25: 1. | B25: Vrba Štěpán | C25: Sokol Luhačovice | D25: 27323 | E25: ha | F25: 286 | G25: 178 | H25: 108 | I25: 4
A26: 2. | B26: Dočkal Pavel | C26: Zlín | D26: 27527 | E26: ha | F26: 275 | G26: 187 | H26: 88 | I26: 4
A27: 3. | B27: Daněček Dominik | C27: Sokol Vracov | D27: 26635 | E27: ha | F27: 259 | G27: 188 | H27: 71 | I27: 5
A28: 4. | B28: Vrba Michal | C28: Sokol Luhačovice | D28: 27325 | E28: ha | F28: 232 | G28: 171 | H28: 61 | I28: 9
A29: 5. | B29: Honl Jakub | C29: TJ Sokol Bohumín | D29: 26845 | E29: ha | F29: 228 | G29: 171 | H29: 57 | I29: 7
A30: 6. | B30: Kancner Michal | C30: VKK Vsetín | D30: 26820 | E30: ha | F30: 221 | G30: 177 | H30: 44 | I30: 10
A31: 7. | B31: Urban Patrik | C31: VKK Vsetín | D31: 26704 | E31: ha | F31: 215 | G31: 153 | H31: 62 | I31: 11
A32: 8. | B32: Čermák Miroslav | C32: TJ Opava | D32: 27293 | E32: ha | F32: 204 | G32: 135 | H32: 69 | I32: 6
A33: 9. | B33: Závrbský Jonáš | C33: Spartak Přerov | D33: 27982 | E33: ha | F33: 202 | G33: 140 | H33: 62 | I33: 12
A34: 10. | B34: Svoboda Tomáš | C34: Zlín | D34: 26664 | E34: ha | F34: 195 | G34: 150 | H34: 45 | I34: 13
A35: 11. | B35: Greš Kryštof | C35: Unie Hlubina | D35: 28335 | E35: ha | F35: 189 | G35: 147 | H35: 42 | I35: 14
A36: 12. | B36: Minařík Josef | C36: Zlín | D36: 28074 | E36: ha | F36: 176 | G36: 143 | H36: 33 | I36: 17
A37: Mladší žáci
A38: 1. | B38: Maiwald Antonín | C38: TJ Opava | D38: 27294 | E38: hb | F38: 249 | G38: 166 | H38: 83 | I38: 4
A39: 2. | B39: Piska Josef | C39: Zlín | D39: 28080 | E39: hb | F39: 246 | G39: 170 | H39: 76 | I39: 8
A40: 3. | B40: Ožana Kajetán | C40: Unie Hlubina | D40: 28281 | E40: hb | F40: 231 | G40: 153 | H40: 78 | I40: 7
A41: 4. | B41: Dedík Jan | C41: Zlín | D41: 28079 | E41: hb | F41: 230 | G41: 154 | H41: 76 | I41: 5
A42: 5. | B42: Němčanský Ondřej | C42: TJ Opava | D42: 27562 | E42: hb | F42: 228 | G42: 144 | H42: 84 | I42: 8
A43: 6. | B43: Steur Maxim | C43: TJ Opava | D43: 27537 | E43: hb | F43: 222 | G43: 138 | H43: 84 | I43: 7
A44: 7. | B44: Heinik Sebastian | C44: Zlín | D44: 28077 | E44: hb | F44: 218 | G44: 134 | H44: 84 | I44: 11
A45: 8. | B45: Harazim Štěpán | C45: TJ Opava | D45: 27295 | E45: hb | F45: 207 | G45: 124 | H45: 83 | I45: 6

Sheet Slavoj Plzeň
A1: Slavoj Plzeň
B5: Jméno | C5: Oddíl | D5: Reg.č. | E5: Kategorie | F5: Celk. | G5: Plné | H5: Dor. | I5: Chyb
A8: Starší žákyně
A9: 1. | B9: Rubášová Aneta | C9: TJ Sokol Kdyně | D9: 26735 | E9: da | F9: =IF(OR(ISBLANK($G9))," ",G9+H9) -> 267 | G9: 183 | H9: 84 | I9: 4
A10: 2. | B10: Haasová Růžena | C10: Fezko Strakonice | D10: 27018 | E10: da | F10: 249 | G10: 182 | H10: 67 | I10: 6
A11: 3. | B11: Baťková Sofie | C11: TJ Blatná | D11: 27410 | E11: da | F11: 232 | G11: 176 | H11: 56 | I11: 7
A12: Mladší žákyně
A13: 1. | B13: Hervertová Kristýna | C13: TJ Lomnice | D13: 27505 | E13: db | F13: 289 | G13: 178 | H13: 111 | I13: 2
A14: 2. | B14: Vaněčková Victorie | C14: CB Dobřany | D14: 27218 | E14: db | F14: 281 | G14: 179 | H14: 102 | I14: 5
A15: 3. | B15: Baťková Natálie | C15: TJ Blatná | D15: 27547 | E15: db | F15: 275 | G15: 182 | H15: 93 | I15: 6
A16: 4. | B16: Sušienková Hana | C16: Škoda Plzeň | D16: 27561 | E16: db | F16: 271 | G16: 181 | H16: 90 | I16: 2
A17: 5. | B17: Bartošová Anna | C17: Jiskra Hazlov | D17: 26543 | E17: db | F17: 255 | G17: 157 | H17: 98 | I17: 5
A18: 6. | B18: Faitová Eva | C18: Kuželky Holýšov | D18: 28107 | E18: db | F18: 111 | G18: 65 | H18: 46 | I18: 28
A19: Starší žáci
A20: 1. | B20: Leština Břetislav | C20: Kuželky Holýšov | D20: 27683 | E20: ha | F20: 288 | G20: 198 | H20: 90 | I20: 3
A21: 2. | B21: Kaas Alan | C21: TJ Slavoj Plzeň | D21: 26445 | E21: ha | F21: 264 | G21: 196 | H21: 68 | I21: 9
A22: 3. | B22: Fous Lukáš | C22: Sokol Zahořany | D22: 27699 | E22: ha | F22: 252 | G22: 165 | H22: 87 | I22: 1
A23: 4. | B23: Jindřich Petr | C23: SKK Rokycany | D23: 27100 | E23: ha | F23: 237 | G23: 185 | H23: 52 | I23: 10
A24: 5. | B24: Köriš Antonín | C24: TJ Blatná | D24: 27662 | E24: ha | F24: 234 | G24: 159 | H24: 75 | I24: 8
A25: 6. | B25: Veselý Dominik | C25: SKK Rokycany | D25: 27896 | E25: ha | F25: 228 | G25: 156 | H25: 72 | I25: 7
A26: 7. | B26: Steinbach Josef | C26: TJ Slavoj Plzeň | D26: 26869 | E26: ha | F26: 208 | G26: 156 | H26: 52 | I26: 10
A27: 8. | B27: Köstler Sebastian | C27: TJ Lomnice | D27: 27285 | E27: ha | F27: 199 | G27: 156 | H27: 43 | I27: 13
A28: 9. | B28: Kulich Luboš | C28: Sokol Zahořany | D28: 27700 | E28: ha | F28: 194 | G28: 147 | H28: 47 | I28: 13
A29: 10. | B29: Vavříček Matěj | C29: Kuželky Holýšov | D29: 28111 | E29: ha | F29: 187 | G29: 132 | H29: 55 | I29: 14
A30: 11. | B30: Cafourek Matyáš | C30: TJ Dobřany | D30: 28363 | E30: ha | F30: 115 | G30: 88 | H30: 27 | I30: 27
A31: Mladší žáci
A32: 1. | B32: Kupar Vít | C32: TJ Blatná | D32: 27548 | E32: hb | F32: 262 | G32: 150 | H32: 112 | I32: 3
A33: 2. | B33: Dinnebier Vítek | C33: TJ Slavoj Plzeň | D33: 27909 | E33: hb | F33: 260 | G33: 176 | H33: 84 | I33: 7
A34: 3. | B34: Weck Ondřej | C34: SKK Rokycany | D34: 27543 | E34: hb | F34: 257 | G34: 157 | H34: 100 | I34: 5
A35: 4. | B35: Hajník Vojtěch | C35: TJ Blatná | D35: 27861 | E35: hb | F35: 240 | G35: 165 | H35: 75 | I35: 5
A36: 5. | B36: Návara Vojtěch | C36: Kuželky Holýšov | D36: 27681 | E36: hb | F36: 235 | G36: 154 | H36: 81 | I36: 10
A37: 6. | B37: Baloun Jiří | C37: CB Dobřany | D37: 27891 | E37: hb | F37: 232 | G37: 155 | H37: 77 | I37: 9
A38: 7. | B38: Vavříček Vít | C38: Kuželky Holýšov | D38: 28112 | E38: hb | F38: 187 | G38: 120 | H38: 67 | I38: 12

Sheet Vyškov
A1: Vyškov
B5: Jméno | C5: Oddíl | D5: Reg.č. | E5: Kategorie | F5: Celk. | G5: Plné | H5: Dor. | I5: Chyb
A8: Starší žákyně
A9: 1. | B9: Kvapilová Eliška | C9: KK Zábřeh | D9: 27111 | E9: da | F9: =IF(OR(ISBLANK($G9))," ",G9+H9) -> 271 | G9: 193 | H9: 78 | I9: 3
A10: 2. | B10: Růžičková Beáta | C10: Baník Ratíškovice | D10: 26973 | E10: da | F10: 265 | G10: 185 | H10: 80 | I10: 7
A11: 3. | B11: Novotná Anna | C11: Baník Ratíškovice | D11: 26972 | E11: da | F11: 261 | G11: 190 | H11: 71 | I11: 3
A12: 4. | B12: Košuličová Justýna | C12: Baník Ratíškovice | D12: 27225 | E12: da | F12: 255 | G12: 182 | H12: 73 | I12: 7
A13: 5. | B13: Sedláčková Veronika | C13: KK Blansko | D13: 27259 | E13: da | F13: 248 | G13: 182 | H13: 66 | I13: 4
A14: 6. | B14: Havířová Linda | C14: KK Blansko | D14: 27241 | E14: da | F14: 243 | G14: 160 | H14: 83 | I14: 6
A15: 7. | B15: Rybková Amálie | C15: TJ Valašské Meziříčí | D15: 26836 | E15: da | F15: 241 | G15: 173 | H15: 68 | I15: 10
A16: 8. | B16: Čížková Magdaléna | C16: Baník Ratíškovice | D16: 28286 | E16: da | F16: 236 | G16: 166 | H16: 70 | I16: 9
A17: 9. | B17: Komprsová Adéla | C17: Jiskra Hylváty | D17: 26573 | E17: da | F17: 232 | G17: 162 | H17: 70 | I17: 6
A18: 10. | B18: Marková Laura | C18: KK Blansko | D18: 27237 | E18: da | F18: =IF(OR(ISBLANK($G18))," ",G18+H18) -> 231 | G18: 163 | H18: 68 | I18: 10
A19: 11. | B19: Kotásková Nathalie | C19: Baník Ratíškovice | D19: 26975 | E19: da | F19: 231 | G19: 180 | H19: 51 | I19: 9
A20: 12. | B20: Chlevišťanová Linda | C20: TJ Odry | D20: 27170 | E20: da | F20: 221 | G20: 168 | H20: 53 | I20: 12
A21: 13. | B21: Řepecká Kateřina | C21: TJ Michálkovice | D21: 28263 | E21: da | F21: 204 | G21: 151 | H21: 53 | I21: 13
A22: 14. | B22: Fukanová Adriana | C22: Baník Ratíškovice | D22: 27873 | E22: da | F22: 196 | G22: 146 | H22: 50 | I22: 15
A23: 15. | B23: Kretová Adéla | C23: TJ Horní Benešov | D23: 27557 | E23: da | F23: 192 | G23: 133 | H23: 59 | I23: 7
A24: 16. | B24: Jelínková Kateřina | C24: TJ Horní Benešov | D24: 27924 | E24: da | F24: 192 | G24: 139 | H24: 53 | I24: 8
A25: 17. | B25: Zemanová Simona | C25: Baník Ratíškovice | D25: 28272 | E25: da | F25: 182 | G25: 132 | H25: 50 | I25: 15
A26: Mladší žákyně
A27: 1. | B27: Kolářová Sofie | C27: SK Rybník | D27: 27794 | E27: db | F27: 263 | G27: 164 | H27: 99 | I27: 5
A28: 2. | B28: Šebková Tereza | C28: Baník Ratíškovice | D28: 27870 | E28: db | F28: 243 | G28: 163 | H28: 80 | I28: 8
A29: 3. | B29: Sedláčková Adéla | C29: KK Blansko | D29: 28373 | E29: db | F29: 236 | G29: 138 | H29: 98 | I29: 5
A30: 4. | B30: Pailová Šárka | C30: KK Svitavy | D30: 27071 | E30: db | F30: 229 | G30: 155 | H30: 74 | I30: 7
A31: 5. | B31: Dvorská Simona | C31: TJ Odry | D31: 27960 | E31: db | F31: 219 | G31: 124 | H31: 95 | I31: 6
A32: 6. | B32: Daňková Petra | C32: TJ Horní Benešov | E32: db | F32: 206 | G32: 133 | H32: 73 | I32: 7
A33: 7. | B33: Schüllerová Magdaléna | C33: Baník Ratíškovice | D33: 28271 | E33: db | F33: 194 | G33: 102 | H33: 92 | I33: 13
A34: Starší žáci
A35: 1. | B35: Weinlich Marek | C35: KK Zábřeh | D35: 26764 | E35: ha | F35: 273 | G35: 186 | H35: 87 | I35: 2
A36: 2. | B36: Vejmola Patrik | C36: KK Šumperk | D36: 26505 | E36: ha | F36: 267 | G36: 178 | H36: 89 | I36: 3
A37: 3. | B37: Zelinka Vít | C37: KK Svitavy | D37: 27074 | E37: ha | F37: 253 | G37: 183 | H37: 70 | I37: 4
A38: 4. | B38: Indrák Vojtěch | C38: KK Zábřeh | D38: 26853 | E38: ha | F38: 251 | G38: 173 | H38: 78 | I38: 6
A39: 5. | B39: Koch Tadeáš | C39: Baník Ratíškovice | D39: 27474 | E39: ha | F39: 251 | G39: 189 | H39: 62 | I39: 5
A40: 6. | B40: Meissel Karel | C40: TJ Sokol Přemyslovice | D40: 27574 | E40: ha | F40: 244 | G40: 173 | H40: 71 | I40: 7
A41: 7. | B41: Tichý Ladislav | C41: KK Šumperk | D41: 27951 | E41: ha | F41: 240 | G41: 173 | H41: 67 | I41: 10
A42: 8. | B42: König Petr | C42: KK Zábřeh | D42: 27339 | E42: ha | F42: 239 | G42: 174 | H42: 65 | I42: 8
A43: 9. | B43: Piterka Sebastien | C43: Jiskra Rýmařov | D43: 26227 | E43: ha | F43: 238 | G43: 180 | H43: 58 | I43: 10
A44: 10. | B44: Oprchal Jan | C44: SKK Jeseník | D44: 28187 | E44: ha | F44: 231 | G44: 170 | H44: 61 | I44: 9
A45: 11. | B45: Kuchař Rostislav | C45: TJ Horní Benešov | D45: 27923 | E45: ha | F45: 228 | G45: 161 | H45: 67 | I45: 12
A46: 12. | B46: Šenkýř Jan | C46: KK Ořechov | D46: 27803 | E46: ha | F46: 225 | G46: 164 | H46: 61 | I46: 9
A47: 13. | B47: Švéda Alex | C47: KK Zábřeh | D47: 27400 | E47: ha | F47: 224 | G47: 146 | H47: 78 | I47: 7
A48: 14. | B48: Kříž Matyáš | C48: SK Rybník | D48: 26903 | E48: ha | F48: 214 | G48: 139 | H48: 75 | I48: 9
A49: 15. | B49: Fidrant Josef | C49: TJ Sokol Kdyně | D49: 27731 | E49: ha | F49: 196 | G49: 163 | H49: 33 | I49: 19
A50: 16. | B50: Myšák Kristián | C50: Jiskra Hylváty | D50: 28101 | E50: ha | F50: 193 | G50: 140 | H50: 53 | I50: 9
A51: Mladší žáci
A52: 1. | B52: Opěla Petr | C52: TJ Horní Benešov | D52: 27558 | E52: hb | F52: 283 | G52: 172 | H52: 111 | I52: 2
A53: 2. | B53: Janák David | C53: KK Zábřeh | D53: 28347 | E53: hb | F53: 273 | G53: 155 | H53: 118 | I53: 2
A54: 3. | B54: Šebesta Adam | C54: Baník Ratíškovice | D54: 27871 | E54: hb | F54: 268 | G54: 170 | H54: 98 | I54: 7
A55: 4. | B55: Petráš Jakub | C55: KK Zábřeh | D55: 28346 | E55: hb | F55: 263 | G55: 167 | H55: 96 | I55: 2
A56: 5. | B56: Novotný Mikuláš | C56: Baník Ratíškovice | D56: 27869 | E56: hb | F56: 256 | G56: 176 | H56: 80 | I56: 7
A57: 6. | B57: Fidrant Jakub | C57: TJ Sokol Kdyně | D57: 27732 | E57: hb | F57: 242 | G57: 157 | H57: 85 | I57: 9
A58: 7. | B58: Čuba Alex | C58: TJ Horní Benešov | D58: 27677 | E58: hb | F58: 239 | G58: 158 | H58: 81 | I58: 10
A59: 8. | B59: Malina Tomáš | C59: TJ Odry | D59: 27169 | E59: hb | F59: 237 | G59: 147 | H59: 90 | I59: 6
A60: 9. | B60: Šišma Fabian | C60: KK Vyškov | D60: 27876 | E60: hb | F60: 232 | G60: 141 | H60: 91 | I60: 6
A61: 10. | B61: Sitař Filip | C61: KK Šumperk | D61: 27955 | E61: hb | F61: 229 | G61: 129 | H61: 100 | I61: 5
A62: 11. | B62: Dusík Jaroslav | C62: TJ Horní Benešov | D62: 27925 | E62: hb | F62: 228 | G62: 147 | H62: 81 | I62: 9
A63: 12. | B63: Šišma Sebastian | C63: KK Vyškov | D63: 27877 | E63: hb | F63: 227 | G63: 149 | H63: 78 | I63: 9
A64: 13. | B64: Plášil Samuel | C64: KK Vyškov | D64: 28094 | E64: hb | F64: 224 | G64: 134 | H64: 90 | I64: 6
A65: 14. | B65: Smejkal Daniel | C65: SKK Jeseník | D65: 28185 | E65: hb | F65: 224 | G65: 138 | H65: 86 | I65: 7
A66: 15. | B66: Morávek Jan | C66: Jiskra Hylváty | D66: 27888 | E66: hb | F66: 222 | G66: 146 | H66: 76 | I66: 7
A67: 16. | B67: Kolla Jindřich | C67: HKK Olomouc | D67: 27224 | E67: hb | F67: 216 | G67: 125 | H67: 91 | I67: 7
A68: 17. | B68: Redek Jakub | C68: KK Vyškov | D68: 28095 | E68: hb | F68: 214 | G68: 142 | H68: 72 | I68: 8
A69: 18. | B69: Bršťák Martin | C69: Jiskra Rýmařov | D69: 28098 | E69: hb | F69: 213 | G69: 143 | H69: 70 | I69: 8
A70: 19. | B70: Průcha Vincent | C70: KK Vyškov | D70: 28096 | E70: hb | F70: 207 | G70: 114 | H70: 93 | I70: 5
A71: 20. | B71: Piterka Štěpán | C71: Jiskra Rýmařov | D71: 27206 | E71: hb | F71: 202 | G71: 124 | H71: 78 | I71: 10
A72: 21. | B72: Kratochvíla Dominik | C72: Baník Ratíškovice | D72: 28273 | E72: hb | F72: 195 | G72: 109 | H72: 86 | I72: 13
A73: 22. | B73: Chromečka Michal | C73: TJ Odry | D73: 28240 | E73: hb | F73: 182 | G73: 121 | H73: 61 | I73: 15
A74: 23. | B74: Těžký Václav | C74: TJ Horní Benešov | D74: 27939 | E74: hb | F74: 178 | G74: 95 | H74: 83 | I74: 12
A75: 24. | B75: Šnajdr Tomáš | C75: TJ Odry | D75: 28239 | E75: hb | F75: 175 | G75: 115 | H75: 60 | I75: 16
A76: 25. | B76: Řepecký Jiří | C76: TJ Michálkovice | D76: 28261 | E76: hb | F76: 171 | G76: 104 | H76: 67 | I76: 15
A77: 26. | B77: Řepecký Ondřej | C77: TJ Michálkovice | D77: 28262 | E77: hb | F77: 153 | G77: 93 | H77: 60 | I77: 20
